Cogmind - Beta 16.1 @@@ ROGUE MODE // 2026.02.26 @ 22:09:36 Player: Zish Result: Destroyed by YI-UF0 with YI-UF0's Doublenader Performance ------------- Evolutions (0) 0 Regions Visited (2) 400 Robots Destroyed (25) 125 Value Destroyed (428) 428 Prototype IDs (0) 0 Alien Tech Used (0) 0 Bonus (0) 0 TOTAL SCORE: 953 Bonus ------- None Cogmind --------- Core Integrity 0/250 Matter 229/300 Energy 242/250 System Corruption 0% Temperature Cool (0) Movement Treading (160) Location -10/Mines Parts ------- > --- POWER (1) -------- Ion Engine > --- PROPULSION (2) --- Light Treads Improved Treads > --- UTILITY (2) ------ Large Storage Unit > --- WEAPON (2) ------- Light Assault Rifle Mining Claw > --- INVENTORY (15) --- Ion Engine Ion Engine Light Treads Improved Treads Improved Treads Improved Treads Small Storage Unit Weapon Shielding Light Assault Rifle Rocket Launcher Peak State ------------ > --- POWER ------------ Ion Engine > --- PROPULSION ------- Light Treads Light Treads > --- UTILITY ---------- Large Storage Unit Weapon Shielding > --- WEAPON ----------- Assault Rifle Assault Rifle > --- INVENTORY -------- Ion Engine Ion Engine Light Treads Improved Treads Improved Treads Improved Treads Improved Treads Small Storage Unit Weapon Shielding Light Assault Rifle Light Assault Rifle Rocket Launcher Rocket Launcher Mining Claw [Rating: 9] Favorites ----------- Power Ion Engine Engine Ion Engine Propulsion Light Treads Treads Light Treads Utility Weapon Shielding Storage Large Storage Unit Protection Weapon Shielding Weapon Assault Rifle Ballistic Gun Assault Rifle Launcher Rocket Launcher Slashing Weapon Mining Claw Build | -11 -10 -10 ------- Run | Yrd Mat Min Slots Evolved . | . . . Power . | . . . Propulsion . | . . . Utility . | . . . Weapon . | . . . Parts Attached 18 | 7 7 4 Power 3 | 1 2 . Engine 3 | 1 2 . Core . | . . . Reactor . | . . . Propulsion 6 | 2 2 2 Treads 6 | 2 2 2 Leg . | . . . Wheel . | . . . Hover . | . . . Flight . | . . . Utility 3 | 1 2 . Device . | . . . Storage 2 | 1 1 . Processor . | . . . Hackware . | . . . Protection 1 | . 1 . Artifact . | . . . Weapon 6 | 3 1 2 Energy Gun . | . . . Energy Cannon . | . . . Ballistic Gun 4 | 3 1 . Ballistic Cannon . | . . . Launcher 1 | . . 1 Special Weapon . | . . . Impact Weapon . | . . . Slashing Weapon 1 | . . 1 Piercing Weapon . | . . . Special Melee Weapon . | . . . Unidentified Prototypes . | . . . Parts Lost 8 | . 2 6 Power 1 | . 1 . Propulsion 3 | . 1 2 Utility 1 | . . 1 Weapon 3 | . . 3 Highest Loss Streak 6 | . 1 6 To Critical Strikes . | . . . Average Backups 10 | 1 9 14 Power 1 | . 1 2 Propulsion 4 | . 3 6 Utility 1 | . 1 2 Weapon 3 | . 3 4 Tool/Special . | . . . Unused Backups 8 | . . 8 Power 2 | . . 2 Propulsion 4 | . . 4 Utility 1 | . . 1 Weapon 1 | . . 1 Tool/Special . | . . . Average Slot Usage (%) 97 | . 96 99 Engine 14 | . 14 14 Treads 27 | . 26 27 Storage 14 | . 14 14 Protection 12 | . 12 13 Ballistic Gun 27 | . 27 27 Peak Build Rating 9 | 6 9 9 Average Rating 7 | 4 7 8 On Entrance 5 | . 6 9 Avg Prop Armor Cover (%) . | . . . Naked Turns . | . . . Heaviest Build 30 | 12 30 30 Greatest Support 43 | 40 40 43 Greatest Overweight (x) 1 | . 1 . Average Overweight (x) . | . . . Largest Inventory Capacity 15 | 8 15 15 Average Capacity 13 | 6 12 15 Most Carried 15 | 2 15 15 Average Carried 10 | 1 9 14 Final Capacity 15 | 8 15 15 Final Carried 15 | 2 15 10 Class Distribution -------------------- 100% | Mutant Dominant Class ---------------- Mutant | -10/Materials Mutant | -10/Mines Resources | -11 -10 -10 ----------- Run | Yrd Mat Min Matter Collected 813 | 217 506 90 Remotely . | . . . Salvage Created 714 | . 511 203 Parts 45 | . 33 12 Haulers Intercepted 2 | . 2 . Recyclers Shooed 1 | . 1 . Parts Field Recycled . | . . . Retrieved Matter . | . . . Parts Self-Destructed . | . . . Prevented . | . . . Parts Restored . | . . . Kills | -11 -10 -10 ------- Run | Yrd Mat Min Combat Hostiles Destroyed 17 | . 12 5 Guns 17 | . 12 5 Classes Destroyed 8 | . 6 2 Worker 2 | . 2 . Builder 1 | . 1 . Tunneler 1 | . . 1 Hauler 2 | . 2 . Recycler 1 | . . 1 Operator 1 | . 1 . Swarmer 9 | . 6 3 Grunt 8 | . 6 2 Best Kill Streak 6 | . 6 4 Combat Bots Only 5 | . 5 3 Max Kills in Single Turn 2 | . 2 2 Gunslinging 1 | . 1 . Exploded . | . . . Melee . | . . . Uniques/NPCs Destroyed . | . . . Combat | -11 -10 -10 -------- Run | Yrd Mat Min Hostile Shots Fired 119 | . 68 51 Missed 36 | . 25 11 Hits 83 | . 43 40 Projectile 83 | . 43 40 AOE 21 | . . 21 Damage Taken 1440 | . 555 885 Core 254 | . 63 191 Absorbed by Shields . | . . . Redirected to Shielding 50 | . 19 31 Core Remaining (%) 100 | 100 . . Volleys Fired 78 | . 60 18 Largest 2 | . 2 2 Hottest 53 | . 40 53 Shots Fired 156 | . 120 36 Gun 153 | . 120 33 Cannon . | . . . Launcher 3 | . . 3 Special . | . . . Kinetic 153 | . 120 33 Thermal . | . . . Explosive 3 | . . 3 Electromagnetic . | . . . Robot Hit Streak 7 | . 7 6 Robot Miss Streak 6 | . 6 4 Penetration Max . | . . . Secondary Targets 5 | . 3 2 Max Gunslinging Chain 1 | . 1 1 Shots Hit Robots 79 | . 59 20 Core Hits 42 | . 28 14 Critical Kills . | . . . Critical Parts Destroyed . | . . . Critical Strikes . | . . . Melee Attacks . | . . . Impact . | . . . Slashing . | . . . Piercing . | . . . Sneak Attacks . | . . . Combat Hostiles . | . . . Follow-up Attacks . | . . . Damage Inflicted 1025 | . 756 269 Guns 1006 | . 756 250 Cannons . | . . . Explosions 19 | . . 19 Melee . | . . . Ramming . | . . . Kinetic 1006 | . 756 250 Thermal . | . . . Explosive 19 | . . 19 Electromagnetic . | . . . Impact . | . . . Slashing . | . . . Piercing . | . . . Highest Corruption . | . . . Average Corruption . | . . . Corruption Purged . | . . . Corruption Blocked . | . . . Overload Shots . | . . . Overflow Damage . | . . . Projectiles . | . . . Explosions . | . . . Melee . | . . . Knockbacks . | . . . Impact . | . . . Kinetic . | . . . Secondary . | . . . Self-Inflicted Damage . | . . . Shots . | . . . Rammed . | . . . Targets Rammed . | . . . Kicked . | . . . Crushed . | . . . Highest Temperature 24 | . 9 24 Average Temperature 7 | . 4 10 Received Heat Transfer 252 | . 183 69 Siege Activations . | . . . Martial Activations . | . . . Shielding Activations . | . . . Robots Disrupted . | . . . Combat Hostiles . | . . . Robots Corrupted . | . . . Combat Hostiles . | . . . Parts Fried . | . . . Impact Corruptions . | . . . Robots Melted . | . . . Combat Hostiles . | . . . Parts Melted . | . . . Heat Transferred . | . . . Parts Sabotaged . | . . . Parts Stolen . | . . . Parts Stripped . | . . . Power Chain Reactions . | . . . Alert | -11 -10 -10 ------- Run | Yrd Mat Min Maximum Alert Level . | . . . Low Security (%) 100 | 100 100 100 Level 1 . | . . . Level 2 . | . . . Level 3 . | . . . Level 4 . | . . . Level 5 . | . . . High Security . | . . . Max Security . | . . . Peak Influence 151 | . 151 80 Initial . | . . . Average 30 | . 39 14 Influence Increases 499 | . 355 144 Destroy 0b10 Robot/C 340 | . 240 100 Destroy 0b10 Robot/NC 40 | . 30 10 Destroy Leader 74 | . 54 20 Successful Hack 14 | . 14 . Destroy Structure 16 | . 2 14 Lose Combat Pursuer 15 | . 15 . Influence Decreases 499 | . 355 144 Time Decay 475 | . 345 130 Lost Part 24 | . 10 14 Squads Dispatched 2 | . 2 . Investigation 1 | . 1 . Extermination . | . . . Reinforcement 1 | . 1 . Assault . | . . . Garrison . | . . . Intercept . | . . . Searches Triggered . | . . . Construction Impeded . | . . . Haulers Reinforced . | . . . Active Scanning Responses . | . . . Cargo Convoy Interrupts . | . . . Stealth | -11 -10 -10 --------- Run | Yrd Mat Min Distress Signals 1 | . 1 . Communications Jammed . | . . . Distress Signals . | . . . Times Spotted 34 | . 28 6 Peak Tracking Total 5 | . 5 3 Tactical Retreats 1 | . 1 . Traps | -11 -10 -10 ------- Run | Yrd Mat Min Traps Triggered 3 | . 3 . Indirectly . | . . . Trap Hack Attempts . | . . . Triggered . | . . . Disarmed . | . . . Reprogrammed . | . . . Reused . | . . . Traps Extracted . | . . . Installed . | . . . Triggered . | . . . Machines | -11 -10 -10 ---------- Run | Yrd Mat Min Machines Disabled . | . . . Max in Single Turn . | . . . Machines Repaired . | . . . Machines Dismantled . | . . . Machines Sabotaged . | . . . Overloaded Fab Kills . | . . . Hacking | -11 -10 -10 --------- Run | Yrd Mat Min Machines Accessed 2 | . 2 . Terminals 2 | . 2 . Fabricators . | . . . Repair Stations . | . . . Recycling Units . | . . . Scanalyzers . | . . . Garrison Access . | . . . Total Hacks 3 | . 3 . Successful 2 | . 2 . Failed 1 | . 1 . Catastrophic . | . . . Database Lockouts . | . . . Manual 3 | . 3 . Terminals 3 | . 3 . Fabricators . | . . . Repair Stations . | . . . Recycling Units . | . . . Scanalyzers . | . . . Garrison Access . | . . . Terminal Hacks 1 | . 1 . Branch Access Points 1 | . 1 . Fabricator Hacks . | . . . Repair Station Hacks . | . . . Recycling Unit Hacks . | . . . Scanalyzer . | . . . Garrison Access Hacks . | . . . Unauthorized Hacks 1 | . 1 . Terminals 1 | . 1 . Operators 1 | . 1 . Fabricators . | . . . Repair Stations . | . . . Recycling Units . | . . . Scanalyzers . | . . . Garrison Access . | . . . Data Cores Recovered . | . . . Used . | . . . Hacking Detections . | . . . Full Trace Events . | . . . Feedback Events . | . . . Feedback Blocked . | . . . Robot Schematics Acquired . | . . . Robots Built . | . . . Authchips . | . . . Time . | . . . Total Robot Build Rating . | . . . Part Schematics Acquired . | . . . Parts Built . | . . . Authchips . | . . . Time . | . . . Total Part Build Rating . | . . . Part Studies Acquired . | . . . Parts Repaired . | . . . Time . | . . . Parts Recycled . | . . . Recycled Matter . | . . . Retrieved Matter . | . . . Retrieved Components . | . . . Parts Scanalyzed . | . . . Part Schematics Acquired . | . . . Parts Damaged . | . . . Bothacking | -11 -10 -10 ------------ Run | Yrd Mat Min Used RIF Installer . | . . . Robots Hacked . | . . . Non-combat . | . . . Combat . | . . . Robot Hacks Applied . | . . . Relay Couplers Released . | . . . Fabnet Peak Effective % . | . . . Robots Rewired . | . . . Allies Hacked . | . . . Hacks Repelled . | . . . Allies | -11 -10 -10 -------- Run | Yrd Mat Min Total Allies . | . . . Largest Group . | . . . Highest-Rated Group . | . . . Highest-Rated Ally . | . . . Total Orders . | . . . Ally Attacks . | . . . Total Damage . | . . . Kills . | . . . Allies Corrupted . | . . . Allies Melted . | . . . Intel | -11 -10 -10 ------- Run | Yrd Mat Min Active Infowar (turns) . | . . . Robot Analysis Total . | . . . Derelict Logs Recovered 1 | . . 1 Drone Launches . | . . . Drone Recoveries . | . . . Exploration | -11 -10 -10 ------------- Run | Yrd Mat Min Turns Passed 2153 | 77 1419 657 Spaces Moved 1134 | 44 719 371 Core 3 | 3 . . Treads 1131 | 41 719 371 Legs . | . . . Wheels . | . . . Hover . | . . . Flight . | . . . Fastest Speed 50 | 50 160 160 Average Speed 163 | 152 165 160 Slowest Speed 240 | 160 240 160 Overloaded Moves . | . . . Propulsion Burnouts . | . . . Robots Hopped . | . . . Potential Cave-ins . | . . . Cave-ins Triggered . | . . . Exploration Rate (%) 55 | 3 83 81 Regions Visited 2 Branch Regions 1 Pre-discovered Areas . | . . . Known Exits Taken 1 | . 1 . Unknown Exits Taken 1 | 1 . . Scrap Searched 1 | . . 1 Spaces Dug . | . . . Terrain Destroyed 22 | . . 22 Melee . | . . . Projectile . | . . . AOE 22 | . . 22 Terrain Rammed . | . . . Walls Destroyed . | . . . Machines Disabled . | . . . Actions | -11 -10 -10 --------- Run | Yrd Mat Min Total 1275 | 51 825 399 Wait 23 | . 18 5 Move 1132 | 43 718 371 Hop . | . . . Pick Up 16 | 1 15 . Fast Attach 7 | 6 1 . Attach 9 | . 4 5 Detach 2 | . 2 . Swap 6 | 1 5 . Drop 2 | . 2 . Fire 78 | . 60 18 Melee . | . . . Ram . | . . . Kick . | . . . Crush . | . . . Escape Stasis . | . . . Rewire . | . . . Trap . | . . . Miscellaneous . | . . . Route ------- -11/Scrapyard -10/Materials (discovered 4 exits: [*Mat x2] / *Min / [*Sub]) -10/Mines (discovered 1 exit: [*Mat]) History --------- Turn | Location | Event 14 | -11/Scrapyard | Discovered new exit (range 13) 78 | -11/Scrapyard | Entered Materials 112 | -10/Materials | Identified exit to Mines 316 | -10/Materials | Build established: Mutant 530 | -10/Materials | Discovered new exit (range 12) 600 | -10/Materials | Discovered new exit (range 9) 915 | -10/Materials | Discovered new exit (range 4) 978 | -10/Materials | Derelicts attacked the area 1497 | -10/Materials | Entered Mines 1502 | -10/Mines | YI-UF0 nonchalantly dropped a Grenade Launcher on the ground 1630 | -10/Mines | Discovered new exit (range 14) 2107 | -10/Mines | Learned Materials stockpile data 2147 | -10/Mines | Core integrity fell below 50% 2149 | -10/Mines | Core integrity fell below 20% 2154 | -10/Mines | Destroyed by YI-UF0 with YI-UF0's Doublenader Last Messages --------------- 01909_ T-07 Excavator is excavating. 02107_ Acquired derelict log, extracted data. Data stored: Materials stockpile data. 02136_ Weapon Shielding destroyed. 02136_ Assault Rifle destroyed. 02139_ The unstable cave ceiling collapses. 02142_ Lgt. Treads destroyed. 02145_ The unstable cave ceiling collapses. 02146_ Rocket Launcher destroyed. 02146_ YI-UF0: "BOOM!" 02146_ K-01 Serf destroyed. 02147_ The unstable cave ceiling collapses. 02148_ U-05 Engineer lays Concrete. 02149_ The unstable cave ceiling collapses. 02149_ U-05 Engineer lays Concrete. 02151_ The unstable cave ceiling collapses. 02151_ U-05 Engineer lays Concrete. 02152_ YI-UF0 mumbles something. 02152_ The unstable cave ceiling collapses. 02152_ U-05 Engineer lays Concrete. Map ----- +----------------------------------------------------+ | #### ##??????????????# ### #?????## #? | | =! #??????????????# ##??### #? | | !%! #??????????????# #### #### ##? | | ##### #??????????????# #??# ##?? | | ????? #?????#????????# #?## ##??? | | ????? ????? ????????# ### ## ## ##???? | | ?????###????# ???????# ## #############????? | | ????????????# ???????# #????????????????? | | ????????????# ###????##### #????????????????? | | ????????????# ########### ##????????????????? | | ????????????# ### #?????????????????? | | ????????????### ######## #?# #?????????????????? | | ??????????????# #??????# #?# #?????????????????? | | ???????????# #??????# ### #?????????????????? | | ??????????????# #??????# #?????????????????? | | ??????????????# #??????##########??????????????? | | ??????????????# #???????????# gg#??????????????? | | ??????????????# #???????????# #??????????????? | | ??????????????# ######??????# #??????????????? | | ?????????????## ## ##??### #######????????? | | ?????????????# ## ??# #????????? | | ????????????## ### ###??????? | | ????????????# # #??????? | | ?????????????# #??????? | | ?????????????# #??????? | | ?????????????# g @ #???????? | | ?????????????# #??????? | | ?????????????#### #??????? | | ????????????????# # #??????? | | ????????????????# #### ##??????? | | ????????????????# ## = ##???????? | | ????????????????# #### # u #???????? | | ????????????????### #??### ##???????? | | ??????????????????# #????#### ########????????? | | ??????????????????# #???????# #???????????????? | | ??????????????????# #???????# #???????????????? | | ??????????????????# #???????# #???????????????? | | ??????????????????# #???????# #???????????????? | | ?????????????????## ###?????# #???????????????? | | ????????????????## #?????# #???????????????? | | ##??????????????# #?????# #???????????????? | | ##????????????## #?????# #???????????????? | | ##??????????## ##?????# #????########???? | | #### #?#### ##????### ### #???? | | #?# ######### """ ""??????? | | #?# """ ""??????? | | #########?## ##### """ "???????? | | ##??????????## ###########???? ???????? | | #????????????# #???????????????""" ""??????? | | ?????????????## ##????????????????"" ""??????? | +----------------------------------------------------+ Best States ------------- Heat Dissipation 25 Energy Generation 10 Energy Capacity 250 Matter Stores 300 Matter Capacity 300 Sight Range 16 Terrain Scan Density 10 Weapon Shielding 33 Evasion (%) 40 Recoil Reduction 2 Item Schematics ----------------- None Robot Schematics ------------------ None Fabricated ------------ Nothing Repaired ---------- Nothing Studied --------- None Alien Tech Used ----------------- None Achievements -------------- None Challenges ------------ None Game ------ Seed ThiefTitaniumWeb Manual? 0 Play Time 00:10:24 Cumulative 31.7 hours Start 2026.02.26 @ 22:00:36 End 2026.02.26 @ 22:09:36 Sessions 1 Manual Loads 0 Difficulty Rogue Special Mode None Game No. 87 Rogue 87 Adventurer 0 Explorer 0 Win Type - Total 0 Types 0/0/0/0/0/0/0/0/0/0 Lore% 18 Gallery% 28 Achievement% 22 Wizard Run 0 Options --------- Layout 1 ASCII 0 Keyboard 1 Movement Vi Keybinds 0 Fullscreen 1 Font 24/Smallcaps Map View 50x35 Zoom Use 0% Tactical HUD 1 Map Filters NONE Filters NONE Steam 1 RUN: 6e172f17-1e81-413b-a212-1b87b11d51bb